fUSD/lending_fUSD_20260512
["ID","MTS","AMOUNT","RATE_DAILY","PERIOD"]
[422115565,1778579431000,-150.0,0.00015469,2]
[422115573,1778579431000,-500.0,0.00015638,2]
[422115564,1778579431000,-529.47,0.00015465,2]
[422115577,1778579431000,-170.25,0.00015932,2]
[422115595,1778579431000,-166.66,0.00016287,2]
[422115571,1778579431000,-17004.31,0.00015561,2]
[422115594,1778579431000,-1000.0,0.00016285,2]
[422115592,1778579431000,-295.14425374,0.00016223,2]
[422115590,1778579431000,-151.0,0.00016223,2]
[422115589,1778579431000,-151.0,0.00016223,2]
[422115587,1778579431000,-151.0,0.00016223,2]
[422115586,1778579431000,-151.0,0.00016223,2]
[422115593,1778579431000,-1333.91,0.0001624,2]
[422115588,1778579431000,-151.0,0.00016223,2]
[422115582,1778579431000,-150.0,0.00016107,2]
[422115579,1778579431000,-529.47,0.00015968,2]
[422115580,1778579431000,-300.0,0.00016,2]
[422115584,1778579431000,-151.0,0.00016223,2]
[422115585,1778579431000,-151.0,0.00016223,2]
[422115583,1778579431000,-302.47,0.00016108,2]
[422115581,1778579431000,-2000.0,0.00016003,2]
[422115578,1778579431000,-166.66,0.00015958,2]
[422115627,1778579432000,-204.91512717,0.0001857,2]
[422115644,1778579432000,-500.0,0.00018671,2]
[422115641,1778579432000,-500.0,0.00018671,2]
[422115640,1778579432000,-500.0,0.00018671,2]
[422115639,1778579432000,-500.0,0.00018671,2]
[422115635,1778579432000,-1156.83519832,0.00018657,2]
[422115637,1778579432000,-7288.28629119,0.00018667,2]
[422115634,1778579432000,-587.0,0.00018616,2]
[422115633,1778579432000,-1002.01916522,0.00018582,2]
[422115643,1778579432000,-356.20393392,0.00018671,2]
[422115638,1778579432000,-12103.66226344,0.00018667,2]
[422115645,1778579432000,-500.0,0.00018671,2]
[422115653,1778579432000,-500.0,0.00018671,2]
[422115642,1778579432000,-500.0,0.00018671,2]
[422115646,1778579432000,-500.0,0.00018671,2]
[422115649,1778579432000,-500.0,0.00018671,2]
[422115647,1778579432000,-500.0,0.00018671,2]
[422115650,1778579432000,-500.0,0.00018671,2]
[422115651,1778579432000,-500.0,0.00018671,2]
[422115652,1778579432000,-500.0,0.00018671,2]
[422115657,1778579432000,-500.0,0.00018671,2]
[422115656,1778579432000,-500.0,0.00018671,2]
[422115658,1778579432000,-500.0,0.00018671,2]
[422115660,1778579432000,-500.0,0.00018671,2]
[422115631,1778579432000,-4166.5479,0.00018572,2]
[422115648,1778579432000,-500.0,0.00018671,2]
[422115619,1778579432000,-2000.0,0.00018003,2]
[422115597,1778579432000,-204.91512717,0.00016465,2]
[422115625,1778579432000,-163.41,0.00018536,2]
[422115659,1778579432000,-500.0,0.00018671,2]
[422115596,1778579432000,-163.41,0.00016435,2]
[422115602,1778579432000,-167.21,0.00016648,2]
[422115601,1778579432000,-166.66,0.00016616,2]
[422115600,1778579432000,-302.47,0.00016511,2]
[422115599,1778579432000,-529.47,0.0001647,2]
[422115604,1778579432000,-166.66,0.00016945,2]
[422115603,1778579432000,-302.47,0.00016914,2]
[422115606,1778579432000,-529.47,0.00016973,2]
[422115608,1778579432000,-500.0,0.00017105,2]
[422115605,1778579432000,-163.41,0.0001696,2]
[422115607,1778579432000,-420.0,0.0001702,2]
[422115612,1778579432000,-150.0,0.00017371,2]
[422115614,1778579432000,-529.47,0.00017475,2]
[422115609,1778579432000,-1680.0,0.00017105,2]
[422115615,1778579432000,-163.41,0.00017485,2]
[422115613,1778579432000,-836.34,0.00017404,2]
[422115611,1778579432000,-302.47,0.00017316,2]
[422115610,1778579432000,-166.66,0.00017274,2]
[422115616,1778579432000,-302.47,0.00017719,2]
[422115617,1778579432000,-167.21,0.00017757,2]
[422115618,1778579432000,-529.47,0.00017978,2]
[422115620,1778579432000,-163.41,0.00018011,2]
[422115621,1778579432000,-273.0,0.00018248,2]
[422115623,1778579432000,-529.47,0.0001848,2]
[422115629,1778579432000,-500.0,0.00018572,2]
[422115662,1778579432000,-500.0,0.00018671,2]
[422115636,1778579432000,-264.08,0.00018662,3]
[422115655,1778579432000,-440.97561253,0.00018671,2]
[422115691,1778579432000,-500.0,0.00018671,2]
[422115692,1778579432000,-500.0,0.00018671,2]
[422115693,1778579432000,-500.0,0.00018671,2]
[422115699,1778579432000,-500.0,0.00018671,2]
[422115694,1778579432000,-500.0,0.00018671,2]
[422115695,1778579432000,-500.0,0.00018671,2]
[422115698,1778579432000,-500.0,0.00018671,2]
[422115697,1778579432000,-500.0,0.00018671,2]
[422115700,1778579432000,-500.0,0.00018671,2]
[422115701,1778579432000,-500.0,0.00018671,2]
[422115703,1778579432000,-444.65442274,0.00018671,2]
[422115702,1778579432000,-458.35900992,0.00018671,2]
[422115690,1778579432000,-500.0,0.00018671,2]
[422115705,1778579432000,-500.0,0.00018671,2]
[422115706,1778579432000,-500.0,0.00018671,2]
[422115708,1778579432000,-500.0,0.00018671,2]
[422115707,1778579432000,-500.0,0.00018671,2]
[422115710,1778579432000,-330.37437133,0.00018671,2]
[422115712,1778579432000,-500.0,0.00018671,2]
[422115709,1778579432000,-500.0,0.00018671,2]
[422115713,1778579432000,-500.0,0.00018671,2]
[422115711,1778579432000,-500.0,0.00018671,2]
[422115715,1778579432000,-500.0,0.00018671,2]
[422115714,1778579432000,-490.69314574,0.00018671,2]
[422115717,1778579432000,-500.0,0.00018671,2]
[422115654,1778579432000,-500.0,0.00018671,2]
[422115704,1778579432000,-500.0,0.00018671,2]
[422115689,1778579432000,-500.0,0.00018671,2]
[422115696,1778579432000,-512.23984652,0.00018671,2]
[422115683,1778579432000,-500.0,0.00018671,2]
[422115661,1778579432000,-500.0,0.00018671,2]
[422115663,1778579432000,-500.0,0.00018671,2]
[422115665,1778579432000,-500.0,0.00018671,2]
[422115664,1778579432000,-500.0,0.00018671,2]
[422115667,1778579432000,-500.0,0.00018671,2]
[422115686,1778579432000,-500.0,0.00018671,2]
[422115668,1778579432000,-500.0,0.00018671,2]
[422115675,1778579432000,-500.0,0.00018671,2]
[422115669,1778579432000,-500.0,0.00018671,2]
[422115674,1778579432000,-500.0,0.00018671,2]
[422115672,1778579432000,-500.0,0.00018671,2]
[422115673,1778579432000,-500.0,0.00018671,2]
[422115676,1778579432000,-500.0,0.00018671,2]
[422115666,1778579432000,-500.0,0.00018671,2]
[422115670,1778579432000,-500.0,0.00018671,2]
[422115678,1778579432000,-446.54489531,0.00018671,2]
[422115677,1778579432000,-500.0,0.00018671,2]
[422115681,1778579432000,-600.0,0.00018671,2]
[422115682,1778579432000,-500.0,0.00018671,2]
[422115685,1778579432000,-500.0,0.00018671,2]
[422115680,1778579432000,-500.0,0.00018671,2]
[422115687,1778579432000,-500.0,0.00018671,2]
[422115688,1778579432000,-500.0,0.00018671,2]
[422115684,1778579432000,-500.0,0.00018671,2]
[422115716,1778579432000,-500.0,0.00018671,2]
[422115679,1778579432000,-500.0,0.00018671,2]
[422115671,1778579432000,-500.0,0.00018671,2]
[422115723,1778579433000,-74172.73285439,0.00018672,2]
[422115722,1778579433000,-28533.08262746,0.00018672,2]
[422115721,1778579433000,-191941.97048165,0.00018672,2]
[422115720,1778579433000,-502.6031951,0.00018671,2]
[422115724,1778579433000,-7601.58001013,0.00018672,2]
[422115719,1778579433000,-500.0,0.00018671,2]
[422115725,1778579433000,-4046.26253504,0.00018672,2]
[422115718,1778579433000,-500.0,0.00018671,2]
[422115736,1778579437000,-529.47,0.00019485,2]
[422115729,1778579437000,-1139302.82649133,0.00018672,2]
[422115732,1778579437000,-167.21,0.00018867,2]
[422115728,1778579437000,-2182.29,0.00016073,2]
[422115731,1778579437000,-2351.0,0.00018805,2]
[422115730,1778579437000,-690.56720425,0.00018767,2]
[422115734,1778579437000,-230.37770216,0.000193,2]
[422115733,1778579437000,-529.47,0.00018983,2]
[422115735,1778579437000,-836.34,0.00019338,2]
[422115739,1778579437000,-3962.24,0.00019999,10]
[422115738,1778579437000,-167.21,0.00019977,2]
[422115740,1778579437000,-151.0,0.0002,2]
[422115742,1778579437000,-318.0,0.0002,2]
[422115741,1778579437000,-152.0,0.0002,2]
[422115743,1778579437000,-635.0,0.0002,2]
[422115744,1778579437000,-154.0,0.0002,2]
[422115746,1778579437000,-220.0,0.0002,2]
[422115737,1778579437000,-273.74805,0.00019618,2]
[422115745,1778579437000,-151.0,0.0002,2]
[422115786,1778579438000,-500.0,0.00021973,2]
[422115788,1778579438000,-155.0,0.00022,2]
[422115783,1778579438000,-8020.56,0.00021943,30]
[422115787,1778579438000,-7288.28629113,0.00021986,2]
[422115780,1778579438000,-65055.96,0.00021757,2]
[422115782,1778579438000,-500.0,0.00021918,2]
[422115781,1778579438000,-5000.0,0.00021918,2]
[422115790,1778579438000,-635.0,0.00022,2]
[422115777,1778579438000,-24999.99,0.00021757,2]
[422115778,1778579438000,-836.99,0.00021757,2]
[422115785,1778579438000,-500.0,0.00021973,2]
[422115791,1778579438000,-158.0,0.00022,2]
[422115794,1778579438000,-170.47567848,0.00022,2]
[422115792,1778579438000,-220.0,0.00022,2]
[422115793,1778579438000,-155.0,0.00022,2]
[422115772,1778579438000,-150.99,0.00021757,2]
[422115799,1778579438000,-16771.358,0.00022362,2]
[422115797,1778579438000,-167.21,0.00022197,2]
[422115795,1778579438000,-2000.0,0.00022004,2]
[422115796,1778579438000,-304.72177,0.00022111,14]
[422115805,1778579438000,-500.0,0.00022562,2]
[422115803,1778579438000,-1156.83519831,0.00022531,2]
[422115798,1778579438000,-1152.0,0.00022274,2]
[422115800,1778579438000,-427.98591125,0.00022462,2]
[422115802,1778579438000,-182.06033118,0.00022521,2]
[422115804,1778579438000,-500.0,0.00022562,2]
[422115789,1778579438000,-318.0,0.00022,2]
[422115773,1778579438000,-2322.42,0.00021757,2]
[422115774,1778579438000,-999.99,0.00021757,2]
[422115779,1778579438000,-5975.66,0.00021757,2]
[422115801,1778579438000,-2000.0,0.00022462,2]
[422115748,1778579438000,-155.0,0.0002,2]
[422115747,1778579438000,-158.0,0.0002,2]
[422115757,1778579438000,-2000.0,0.00021,2]
[422115756,1778579438000,-9999.99,0.00020951,2]
[422115750,1778579438000,-41209.62,0.0002,30]
[422115751,1778579438000,-2000.0,0.00020003,2]
[422115749,1778579438000,-154.0,0.0002,2]
[422115753,1778579438000,-823.0,0.00020363,2]
[422115755,1778579438000,-3292.0,0.00020673,2]
[422115754,1778579438000,-21789.12,0.00020548,2]
[422115752,1778579438000,-1873.19,0.000201,2]
[422115758,1778579438000,-154.0,0.00021,2]
[422115760,1778579438000,-318.0,0.00021,2]
[422115759,1778579438000,-152.0,0.00021,2]
[422115766,1778579438000,-154.0,0.00021,2]
[422115762,1778579438000,-151.0,0.00021,2]
[422115765,1778579438000,-155.0,0.00021,2]
[422115767,1778579438000,-167.21,0.00021087,2]
[422115761,1778579438000,-635.0,0.00021,2]
[422115764,1778579438000,-165.0,0.00021,2]
[422115763,1778579438000,-220.0,0.00021,2]
[422115768,1778579438000,-12103.66226338,0.00021137,2]
[422115769,1778579438000,-836.34,0.00021272,2]
[422115770,1778579438000,-325.2,0.00021757,2]
[422115771,1778579438000,-1684.86,0.00021757,2]
[422115776,1778579438000,-9999.99,0.00021757,2]
[422115775,1778579438000,-3495.74,0.00021757,2]
[422115806,1778579438000,-500.0,0.00022562,2]
[422115820,1778579438000,-168.0,0.00023,2]
[422115812,1778579438000,-500.0,0.00022573,2]
[422115839,1778579438000,-193.1286995,0.000244,2]
[422115842,1778579438000,-201.63,0.00024658,2]
[422115845,1778579438000,-325.5468363,0.00025,2]
[422115844,1778579438000,-162.38,0.00024658,2]
[422115843,1778579438000,-160.59,0.00024658,2]
[422115847,1778579438000,-232.0,0.00025,2]
[422115846,1778579438000,-638.29275461,0.00025,2]
[422115854,1778579438000,-166.66,0.0002569,2]
[422115848,1778579438000,-500.0,0.00025075,2]
[422115851,1778579438000,-7288.28629113,0.00025305,2]
[422115850,1778579438000,-162.38,0.00025205,7]
[422115852,1778579438000,-629.0,0.00025479,2]
[422115853,1778579438000,-1000.0,0.00025623,2]
[422115849,1778579438000,-160.59,0.00025205,7]
[422115855,1778579438000,-160.59,0.00025753,30]
[422115857,1778579438000,-479.83735214,0.00025983,2]
[422115860,1778579438000,-500.0,0.00025983,2]
[422115859,1778579438000,-500.0,0.00025983,2]
[422115856,1778579438000,-162.38,0.00025753,30]
[422115858,1778579438000,-500.0,0.00025983,2]
[422115865,1778579438000,-503.97223123,0.00025983,2]
[422115864,1778579438000,-500.0,0.00025983,2]
[422115861,1778579438000,-500.0,0.00025983,2]
[422115863,1778579438000,-154.26,0.00025983,2]
[422115862,1778579438000,-500.0,0.00025983,2]
[422115866,1778579438000,-500.0,0.00025983,2]
[422115807,1778579438000,-234.66857943,0.00022562,2]
[422115830,1778579438000,-259.044,0.00024,7]
[422115836,1778579438000,-200.0008692,0.000243,2]
[422115867,1778579438000,-520.46694454,0.00025983,2]
[422115840,1778579438000,-1000.0,0.00024658,2]
[422115813,1778579438000,-500.0,0.00022573,2]
[422115808,1778579438000,-500.0,0.00022562,2]
[422115811,1778579438000,-500.0,0.00022573,2]
[422115810,1778579438000,-500.0,0.00022573,2]
[422115809,1778579438000,-471.99431842,0.00022573,2]
[422115814,1778579438000,-379.76289057,0.00022573,2]
[422115816,1778579438000,-1333.91,0.00022736,2]
[422115833,1778579438000,-220.0,0.00024,2]
[422115817,1778579438000,-318.0,0.00023,2]
[422115818,1778579438000,-635.0,0.00023,2]
[422115819,1778579438000,-220.0,0.00023,2]
[422115822,1778579438000,-167.21,0.00023307,2]
[422115821,1778579438000,-836.34,0.00023205,2]
[422115815,1778579438000,-1327.0,0.00022726,2]
[422115825,1778579438000,-208.2157166,0.00023441,2]
[422115824,1778579438000,-214.86625456,0.00023437,2]
[422115835,1778579438000,-193.1286995,0.000242,2]
[422115837,1778579438000,-1613.0,0.00024363,2]
[422115834,1778579438000,-2000.0,0.00024004,2]
[422115841,1778579438000,-203.83,0.00024658,2]
[422115831,1778579438000,-318.0,0.00024,2]
[422115838,1778579438000,-510.0,0.00024397,2]
[422115829,1778579438000,-193.1286995,0.000239,2]
[422115828,1778579438000,-193.1286995,0.000237,2]
[422115827,1778579438000,-12103.66226338,0.00023608,2]
[422115826,1778579438000,-160.0,0.00023441,2]
[422115823,1778579438000,-193.1286995,0.000234,2]
[422115832,1778579438000,-635.0,0.00024,2]
[422115920,1778579439000,-3315.15,0.00026286,2]
[422115908,1778579439000,-3300.06,0.000262,2]
[422115901,1778579439000,-318.45392843,0.00026173,2]
[422115905,1778579439000,-264.92,0.000262,2]
[422115903,1778579439000,-501.3427202,0.00026173,2]
[422115900,1778579439000,-3300.06,0.00026171,7]
[422115902,1778579439000,-500.0,0.00026173,2]
[422115897,1778579439000,-264.92,0.00026171,7]
[422115899,1778579439000,-1036.98,0.00026171,7]
[422115898,1778579439000,-3315.15,0.00026171,7]
[422115904,1778579439000,-500.0,0.00026173,2]
[422115910,1778579439000,-162.37,0.00026209,7]
[422115922,1778579439000,-3300.06,0.00026286,2]
[422115909,1778579439000,-160.59,0.00026209,7]
[422115915,1778579439000,-264.92,0.00026257,2]
[422115912,1778579439000,-3315.15,0.00026229,7]
[422115911,1778579439000,-264.92,0.00026229,7]
[422115918,1778579439000,-3300.06,0.00026257,2]
[422115916,1778579439000,-3315.15,0.00026257,2]
[422115914,1778579439000,-3300.06,0.00026229,7]
[422115917,1778579439000,-1036.98,0.00026257,2]
[422115919,1778579439000,-264.92,0.00026286,2]
[422115921,1778579439000,-1036.98,0.00026286,2]
[422115923,1778579439000,-264.92,0.00026315,7]
[422115933,1778579439000,-1036.98,0.00026373,2]
[422115895,1778579439000,-313.98,0.00026157,2]
[422115913,1778579439000,-1036.98,0.00026229,7]
[422115907,1778579439000,-1036.98,0.000262,2]
[422115884,1778579439000,-1036.98,0.00026084,2]
[422115896,1778579439000,-1000.0,0.00026171,2]
[422115926,1778579439000,-3300.06,0.00026315,7]
[422115868,1778579439000,-1877.67502266,0.00025984,2]
[422115873,1778579439000,-1036.98,0.00026027,2]
[422115872,1778579439000,-3315.15,0.00026027,2]
[422115870,1778579439000,-160.59,0.00026027,2]
[422115871,1778579439000,-264.92,0.00026027,2]
[422115875,1778579439000,-3300.06,0.00026027,2]
[422115874,1778579439000,-162.37,0.00026027,2]
[422115877,1778579439000,-264.92,0.00026055,7]
[422115878,1778579439000,-3315.15,0.00026055,7]
[422115869,1778579439000,-213.29267257,0.00025984,2]
[422115879,1778579439000,-1036.98,0.00026055,7]
[422115906,1778579439000,-3315.15,0.000262,2]
[422115876,1778579439000,-510.0,0.00026033,3]
[422115881,1778579439000,-12103.66226338,0.00026078,2]
[422115893,1778579439000,-3300.06,0.00026142,7]
[422115882,1778579439000,-264.92,0.00026084,2]
[422115883,1778579439000,-3315.15,0.00026084,2]
[422115892,1778579439000,-1036.98,0.00026142,7]
[422115889,1778579439000,-3300.06,0.00026113,2]
[422115885,1778579439000,-3300.06,0.00026084,2]
[422115894,1778579439000,-531.98,0.00026157,2]
[422115886,1778579439000,-264.92,0.00026113,2]
[422115888,1778579439000,-1036.98,0.00026113,2]
[422115891,1778579439000,-3315.15,0.00026142,7]
[422115890,1778579439000,-264.92,0.00026142,7]
[422115880,1778579439000,-3300.06,0.00026055,7]
[422115925,1778579439000,-1036.98,0.00026315,7]
[422115887,1778579439000,-3315.15,0.00026113,2]
[422115934,1778579439000,-3300.06,0.00026373,2]
[422115959,1778579439000,-267.28,0.00026517,7]
[422115958,1778579439000,-706.56889102,0.00026515,2]
[422115985,1778579439000,-1009.49,0.00027397,2]
[422115956,1778579439000,-3315.15,0.00026488,7]
[422115962,1778579439000,-3315.15,0.00026517,7]
[422115965,1778579439000,-267.28,0.00026546,2]
[422115964,1778579439000,-166.66,0.00026538,2]
[422115967,1778579439000,-264.92,0.00026546,2]
[422115966,1778579439000,-1040.1,0.00026546,2]
[422115968,1778579439000,-3315.15,0.00026546,2]
[422115971,1778579439000,-1040.29,0.00026575,7]
[422115969,1778579439000,-1036.98,0.00026546,2]
[422115963,1778579439000,-1036.98,0.00026517,7]
[422115970,1778579439000,-267.39,0.00026575,7]
[422115973,1778579439000,-264.94,0.00026575,7]
[422115974,1778579439000,-3315.15,0.00026575,7]
[422115975,1778579439000,-1037.15,0.00026575,7]
[422115978,1778579439000,-1000.0,0.00026721,2]
[422115977,1778579439000,-1002.81656329,0.00026721,2]
[422115979,1778579439000,-150.0,0.00026849,2]
[422115976,1778579439000,-162.4,0.00026575,2]
[422115981,1778579439000,-507.4339652,0.00027021,2]
[422115980,1778579439000,-502.22153914,0.00027021,2]
[422115983,1778579439000,-166.66,0.00027386,2]
[422115984,1778579439000,-1500.0,0.00027397,2]
[422115927,1778579439000,-264.92,0.00026344,7]
[422115972,1778579439000,-160.6,0.00026575,2]
[422115957,1778579439000,-1036.98,0.00026488,7]
[422115982,1778579439000,-705.57359722,0.00027268,2]
[422115961,1778579439000,-264.92,0.00026517,7]
[422115924,1778579439000,-3315.15,0.00026315,7]
[422115930,1778579439000,-3300.06,0.00026344,7]
[422115931,1778579439000,-264.92,0.00026373,2]
[422115928,1778579439000,-3315.15,0.00026344,7]
[422115929,1778579439000,-1036.98,0.00026344,7]
[422115932,1778579439000,-3315.15,0.00026373,2]
[422115935,1778579439000,-160.59,0.00026392,30]
[422115960,1778579439000,-1040.1,0.00026517,7]
[422115938,1778579439000,-3315.15,0.00026402,7]
[422115941,1778579439000,-1156.83519831,0.00026405,2]
[422115940,1778579439000,-3300.06,0.00026402,7]
[422115937,1778579439000,-264.92,0.00026402,7]
[422115939,1778579439000,-1036.98,0.00026402,7]
[422115936,1778579439000,-162.37,0.00026392,30]
[422115946,1778579439000,-267.28,0.00026459,2]
[422115954,1778579439000,-1040.1,0.00026488,7]
[422115942,1778579439000,-264.92,0.00026431,2]
[422115955,1778579439000,-264.92,0.00026488,7]
[422115952,1778579439000,-706.56889102,0.00026478,2]
[422115951,1778579439000,-500.0,0.00026473,2]
[422115950,1778579439000,-500.0,0.00026473,2]
[422115953,1778579439000,-267.28,0.00026488,7]
[422115949,1778579439000,-1036.98,0.00026459,2]
[422115945,1778579439000,-153.92,0.00026442,2]
[422115947,1778579439000,-264.92,0.00026459,2]
[422115948,1778579439000,-3315.15,0.00026459,2]
[422115944,1778579439000,-1036.98,0.00026431,2]
[422115943,1778579439000,-3315.15,0.00026431,2]
[422116024,1778579440000,-1058.25,0.00029483,2]
[422116028,1778579440000,-3576.775,0.00029645,2]
[422116023,1778579440000,-1058.25,0.00029467,2]
[422116027,1778579440000,-504.068,0.00029645,2]
[422116019,1778579440000,-1058.25,0.000294,2]
[422116016,1778579440000,-166.66,0.00029082,2]
[422116018,1778579440000,-510.0,0.00029303,7]
[422116015,1778579440000,-1000.0,0.00029,3]
[422116020,1778579440000,-1058.25,0.00029417,2]
[422116017,1778579440000,-750.0,0.00029142,2]
[422116014,1778579440000,-1000.0,0.00029,4]
[422116031,1778579440000,-1179.954,0.00029645,2]
[422116041,1778579440000,-200.0,0.00030137,2]
[422116032,1778579440000,-417.0,0.00029645,2]
[422116025,1778579440000,-1058.25,0.000295,2]
[422116030,1778579440000,-200.0,0.00029645,2]
[422116026,1778579440000,-150.0,0.00029601,2]
[422116033,1778579440000,-370866.3882449,0.00029827,2]
[422116034,1778579440000,-1149.710511,0.00029827,2]
[422116036,1778579440000,-66881.2955957,0.00029827,2]
[422116035,1778579440000,-952.9061794,0.00029827,2]
[422116042,1778579440000,-274.59,0.00030137,2]
[422116044,1778579440000,-285.3,0.000303,7]
[422116045,1778579440000,-1000.0,0.00030421,5]
[422116013,1778579440000,-1000.0,0.00029,3]
[422116029,1778579440000,-150.0,0.00029645,2]
[422116022,1778579440000,-1058.25,0.0002945,2]
[422115999,1778579440000,-706.56889102,0.00027632,2]
[422116012,1778579440000,-461.81,0.000289,3]
[422116039,1778579440000,-1008.75464268,0.00029957,2]
[422115986,1778579440000,-203.83,0.00027397,2]
[422115987,1778579440000,-300.0,0.00027397,2]
[422115991,1778579440000,-150.0,0.00027397,5]
[422115989,1778579440000,-6367.82,0.00027397,10]
[422115988,1778579440000,-3339.3,0.00027397,10]
[422115998,1778579440000,-706.56889102,0.00027623,2]
[422115990,1778579440000,-5306.52,0.00027397,10]
[422115994,1778579440000,-251.58,0.000275,2]
[422115997,1778579440000,-706.56889102,0.00027609,2]
[422115992,1778579440000,-272.39,0.000274,7]
[422115996,1778579440000,-1225.707422,0.00027575,2]
[422116021,1778579440000,-1058.25,0.00029433,2]
[422115993,1778579440000,-285.3,0.000274,7]
[422116000,1778579440000,-510.0,0.00027668,5]
[422116003,1778579440000,-500.0,0.000278,7]
[422116002,1778579440000,-150.0,0.000278,2]
[422116001,1778579440000,-706.56889102,0.00027676,2]
[422116006,1778579440000,-250.0,0.00027945,5]
[422116005,1778579440000,-706.56889102,0.00027936,2]
[422116004,1778579440000,-706.56889102,0.00027844,2]
[422116008,1778579440000,-166.66,0.00028234,2]
[422116007,1778579440000,-150.0,0.00028192,2]
[422116009,1778579440000,-359.19967472,0.00028493,5]
[422116010,1778579440000,-12103.66226338,0.00028548,2]
[422116011,1778579440000,-7288.28629113,0.00028624,2]
[422115995,1778579440000,-706.56889102,0.00027561,2]
[422116040,1778579440000,-203.83,0.00030137,2]
[422116038,1778579440000,-166.66,0.0002993,2]
[422116084,1778579440000,-233.0,0.0003245,2]
[422116079,1778579440000,-154.0,0.00031687,30]
[422116077,1778579440000,-158.0,0.00031687,30]
[422116075,1778579440000,-635.0,0.00031678,30]
[422116074,1778579440000,-318.0,0.00031678,30]
[422116078,1778579440000,-155.0,0.00031687,30]
[422116081,1778579440000,-7288.28629113,0.00031943,2]
[422116080,1778579440000,-2922.29,0.000317,14]
[422116082,1778579440000,-200.0,0.00032055,2]
[422116091,1778579440000,-400.0,0.00032459,2]
[422116083,1778579440000,-427.98591124,0.00032181,2]
[422116088,1778579440000,-400.0,0.00032459,2]
[422116089,1778579440000,-400.0,0.00032459,2]
[422116087,1778579440000,-400.0,0.00032459,2]
[422116085,1778579440000,-181.0,0.0003245,2]
[422116090,1778579440000,-400.0,0.00032459,2]
[422116086,1778579440000,-400.0,0.00032459,2]
[422116093,1778579440000,-400.0,0.00032459,2]
[422116092,1778579440000,-400.0,0.00032459,2]
[422116096,1778579440000,-150.0,0.00032636,2]
[422116094,1778579440000,-312.0,0.00032459,2]
[422116095,1778579440000,-510.0,0.00032574,10]
[422116097,1778579440000,-3540.0,0.00032645,2]
[422116098,1778579440000,-417.0,0.00032645,2]
[422116099,1778579440000,-151.0,0.00032668,30]
[422116037,1778579440000,-500.0,0.00029873,5]
[422116072,1778579440000,-154.0,0.00031678,30]
[422116071,1778579440000,-151.0,0.00031678,30]
[422116076,1778579440000,-154.0,0.00031678,30]
[422116069,1778579440000,-151.0,0.00031668,30]
[422116043,1778579440000,-1156.83519831,0.00030279,2]
[422116047,1778579440000,-151.0,0.00030668,30]
[422116046,1778579440000,-272.39,0.000306,7]
[422116049,1778579440000,-151.0,0.00030678,30]
[422116052,1778579440000,-318.0,0.00030678,30]
[422116048,1778579440000,-220.0,0.00030668,30]
[422116053,1778579440000,-635.0,0.00030678,30]
[422116050,1778579440000,-154.0,0.00030678,30]
[422116073,1778579440000,-152.0,0.00031678,30]
[422116054,1778579440000,-154.0,0.00030678,30]